fUST/lending_fUST_20250407
["ID","MTS","AMOUNT","RATE_DAILY","PERIOD"]
[357274713,1743972456068,-500.0,0.00025371,2]
[357274714,1743972456092,-500.0,0.00025371,2]
[357274715,1743972456114,-500.0,0.00025371,2]
[357274716,1743972456137,-500.0,0.00025371,2]
[357274717,1743972456160,-200.0,0.00025371,2]
[357274718,1743972456184,-500.0,0.00025371,2]
[357274719,1743972456208,-500.0,0.00025371,2]
[357274720,1743972456232,-500.0,0.00025371,2]
[357274721,1743972456256,-500.0,0.00025371,2]
[357274722,1743972456279,-500.0,0.00025371,2]
[357274723,1743972456304,-500.0,0.00025371,2]
[357274724,1743972456327,-500.0,0.00025371,2]
[357274725,1743972456349,-500.0,0.00025371,2]
[357274726,1743972456370,-14497.95852758,0.00025371,2]
[357274727,1743972456391,-500.0,0.00025373,2]
[357274728,1743972456411,-410.39653095,0.00025373,2]
[357274729,1743972456432,-183.24468588,0.00025373,2]
[357274730,1743972456452,-537.90377505,0.00025373,2]
[357274731,1743972456473,-578.09641296,0.00025373,2]
[357274732,1743972456494,-375.81593026,0.00025373,2]
[357274733,1743972456515,-509.20542168,0.00025373,2]
[357274734,1743972456557,-500.0,0.00025373,2]
[357274735,1743972456581,-500.0,0.00025373,2]
[357274736,1743972456608,-500.0,0.00025373,2]
[357274737,1743972456633,-500.0,0.00025373,2]
[357274738,1743972456656,-500.0,0.00025373,2]
[357274739,1743972456679,-500.0,0.00025373,2]
[357274740,1743972456702,-500.0,0.00025373,2]
[357274741,1743972456726,-500.0,0.00025373,2]
[357274742,1743972456749,-500.0,0.00025373,2]
[357274743,1743972456770,-500.0,0.00025373,2]
[357274744,1743972456793,-500.0,0.00025373,2]
[357274745,1743972456814,-500.0,0.00025373,2]
[357274746,1743972456837,-500.0,0.00025373,2]
[357274747,1743972456858,-155.77,0.00025373,2]
[357274748,1743972456880,-314.41099074,0.00025375,2]
[357274749,1743972456902,-7251.18462219,0.00025375,2]
[357274750,1743972456924,-151.0,0.0002538,2]
[357274751,1743972456946,-200.0,0.0002538,2]
[357274752,1743972456969,-733.62564506,0.00025385,2]
[357274753,1743972456994,-9239.7253748,0.00025385,2]
[357274799,1743972636448,-2200.0,0.00023456,2]
[357274800,1743972636458,-300.0,0.00024336,2]
[357274802,1743972636468,-814.29308636,0.00024337,2]
[357274803,1743972637693,-10105.418073,0.00024337,2]
[357274804,1743972637707,-13980.28884064,0.00024337,2]
[357274805,1743972637727,-500.0,0.00024373,2]
[357274806,1743972637739,-500.0,0.00024373,2]
[357274807,1743972637750,-500.0,0.00024373,2]
[357274808,1743972637760,-500.0,0.00024373,2]
[357274809,1743972637770,-500.0,0.00024373,2]
[357274810,1743972637780,-500.0,0.00024373,2]
[357274811,1743972637791,-500.0,0.00024373,2]
[357274812,1743972637802,-2200.0,0.00024679,2]
[357274813,1743972637813,-3705.72,0.000253,2]
[357274814,1743972637823,-152.0,0.0002535,2]
[357274815,1743972637834,-2438.097027,0.00025359,2]
[357274816,1743972637844,-500.0,0.00025373,2]
[357274817,1743972637854,-500.0,0.00025373,2]
[357274818,1743972637864,-500.0,0.00025373,2]
[357274819,1743972637874,-500.0,0.00025373,2]
[357274820,1743972637884,-500.0,0.00025373,2]
[357274821,1743972637894,-500.0,0.00025373,2]
[357274822,1743972637905,-503.67973529,0.00025373,2]
[357274823,1743972637915,-500.0,0.00025373,2]
[357274824,1743972637926,-500.0,0.00025373,2]
[357274825,1743972637936,-500.0,0.00025373,2]
[357274827,1743972637946,-500.0,0.00025373,2]
[357274829,1743972637956,-500.0,0.00025373,2]
[357274831,1743972637966,-274.22309216,0.00025373,2]
[357274832,1743972637980,-500.01958862,0.00025373,2]
[357274833,1743972637990,-500.0,0.00025373,2]
[357274834,1743972637999,-500.0,0.00025373,2]
[357274835,1743972638010,-199.25,0.00025375,3]
[357274836,1743972638020,-597.76,0.00025375,3]
[357274838,1743972638030,-200.0,0.0002538,2]
[357274839,1743972638039,-500.0,0.00025384,2]
[357274840,1743972638048,-156.39265943,0.00025384,2]
[357274841,1743972638058,-500.0,0.00025384,2]
[357274843,1743972638068,-500.0,0.00025384,2]
[357274845,1743972638079,-500.0,0.00025384,2]
[357274848,1743972638089,-500.0,0.00025384,2]
[357274851,1743972638099,-500.0,0.00025384,2]
[357274853,1743972638111,-500.0,0.00025384,2]
[357274855,1743972638121,-197.70330158,0.00025384,2]
[357274856,1743972638131,-161.28675208,0.00025384,2]
[357274857,1743972638141,-500.0,0.00025384,2]
[357274858,1743972638151,-500.0,0.00025384,2]
[357274859,1743972638161,-500.0,0.00025384,2]
[357274860,1743972638171,-500.0,0.00025384,2]
[357274861,1743972638180,-500.0,0.00025384,2]
[357274862,1743972638190,-500.0,0.00025384,2]
[357274863,1743972638200,-456.05911539,0.00025384,2]
[357274864,1743972638210,-500.0,0.00025384,2]
[357274865,1743972638223,-500.0,0.00025384,2]
[357274866,1743972638233,-500.0,0.00025384,2]
[357274867,1743972638243,-573.37361335,0.00025385,2]
[357274885,1743972639406,-903.58863205,0.00025385,2]
[357274886,1743972639425,-64452.78758798,0.00025385,2]
[357274887,1743972639437,-101058.14257162,0.00025385,2]
[357274888,1743972639446,-1756.89170461,0.00025385,2]
[357274889,1743972639456,-136985.41132577,0.00025395,2]
[357274890,1743972639468,-1181.76065796,0.00025395,2]
[357274891,1743972639481,-6333.67103448,0.00025395,2]
[357274892,1743972639493,-303.09553512,0.00025395,2]
[357274893,1743972639663,-7870.76,0.00025395,2]
[357274894,1743972639676,-3685.45516777,0.00025395,2]
[357274895,1743972639688,-213639.8462789,0.00025395,2]
[357274896,1743972639698,-326.4413262,0.00025459,2]
[357274897,1743972639709,-690.10021478,0.00025573,2]
[357274898,1743972639719,-2200.0,0.00025624,2]
[357274899,1743972639731,-495.31490677,0.0002588,2]
[357274900,1743972639741,-2200.0,0.00026017,2]
[357274901,1743972639750,-2200.0,0.00026079,2]
[357274902,1743972639760,-420.0,0.00026382,2]
[357274903,1743972639770,-2200.0,0.00026399,2]
[357274904,1743972639781,-166.2,0.00026399,2]
[357274905,1743972639790,-166.2,0.00026399,2]
[357274906,1743972639800,-166.2,0.00026399,2]
[357274907,1743972639810,-166.2,0.00026399,2]
[357274908,1743972639820,-166.2,0.00026399,2]
[357274909,1743972639830,-200.0,0.00026455,2]
[357274910,1743972639839,-184.5,0.00026455,2]
[357274911,1743972639849,-184.5,0.00026455,2]
[357274912,1743972639858,-184.5,0.00026455,2]
[357274913,1743972639868,-184.5,0.00026455,2]
[357274914,1743972639878,-184.5,0.00026455,2]
[357274915,1743972639888,-184.5,0.00026455,2]
[357274916,1743972639897,-184.5,0.00026455,2]
[357274917,1743972639907,-184.5,0.00026455,2]
[357274918,1743972639917,-184.5,0.00026455,2]
[357274919,1743972639927,-154.35,0.000266,31]
[357274920,1743972639936,-154.35,0.000266,31]
[357274922,1743972639946,-154.35,0.000266,31]
[357274923,1743972639955,-398.5,0.00026745,3]
[357274924,1743972639965,-207.4,0.00026749,2]
[357274925,1743972639974,-677.08333333,0.00026843,2]
[357274926,1743972639984,-12525.30748765,0.00026843,2]
[357274927,1743972639994,-160.0,0.00026843,2]
[357274928,1743972640003,-160.0,0.00026843,2]
[357274929,1743972640013,-160.0,0.00026866,2]
[357274930,1743972640023,-200.0,0.00027,120]
[357274931,1743972640033,-200.0,0.00027,120]
[357274932,1743972640043,-313.86122,0.00027,120]
[357274933,1743972640053,-257.20483,0.00027397,120]
[357274934,1743972640063,-7442.29189872,0.00027397,5]
[357274935,1743972640072,-2200.0,0.00027399,2]
[357274936,1743972640081,-500.0,0.00027551,2]
[357274937,1743972640091,-2200.0,0.00027755,2]
[357274940,1743972640100,-200.0,0.00027825,2]
[357274942,1743972640109,-215.0738,0.00028118,2]
[357274944,1743972640119,-12525.30748765,0.00028279,7]
[357274946,1743972640129,-151.0,0.000283,14]
[357274948,1743972640138,-3685.91649308,0.00028428,2]
[357274949,1743972640149,-151.0,0.000286,10]
[357274950,1743972640158,-587.0,0.000286,2]
[357274951,1743972640166,-2200.0,0.00028687,2]
[357274952,1743972640175,-23855.4132007,0.00028959,2]
[357274954,1743972640185,-250.98452923,0.00028959,2]
[357274955,1743972640198,-500.0,0.00028973,5]
[357274956,1743972640209,-500.0,0.00028973,5]
[357274957,1743972640219,-500.0,0.00028973,5]
[357274958,1743972640233,-500.0,0.00028973,5]
[357274959,1743972640243,-500.0,0.00028973,5]
[357274960,1743972640254,-500.59501523,0.00028973,5]
[357274961,1743972640264,-152.64083007,0.00028973,5]
[357274962,1743972640274,-515.42230131,0.00028973,5]
[357274963,1743972640284,-504.23024117,0.00028973,5]
[357274964,1743972640294,-162.5309813,0.00028973,5]
[357274965,1743972640304,-500.0,0.00028973,5]
[357274966,1743972640314,-500.0,0.00028973,5]
[357274967,1743972640323,-183.67877057,0.00028973,5]
[357274968,1743972640334,-502.21148346,0.00028973,5]
[357274969,1743972640344,-500.0,0.00028973,2]
[357274970,1743972640353,-511.12613421,0.00028973,5]
[357274971,1743972640363,-500.0,0.00028973,5]
[357274972,1743972640373,-12500.0,0.00028974,3]
[357274973,1743972640383,-12500.0,0.00028982,3]
[357274974,1743972640393,-160.0,0.00028982,3]
[357274975,1743972640402,-677.08333333,0.00028982,3]
[357274976,1743972640412,-418.03929641,0.00028982,3]
[357274977,1743972640422,-160.0,0.00028982,3]
[357274978,1743972640433,-12500.0,0.00028982,3]
[357274979,1743972640442,-160.0,0.00028982,3]
[357274980,1743972640452,-12525.30748765,0.00028982,3]
[357274981,1743972640463,-47710.8264014,0.0002899,2]
[357274982,1743972640475,-1505.90717538,0.0002899,2]
[357274983,1743972640485,-12500.0,0.00028991,3]
[357274984,1743972640495,-12500.0,0.00028991,3]
[357274985,1743972640505,-12500.0,0.00029,3]
[357274986,1743972640515,-12150.79631622,0.00029,7]
[357274987,1743972640525,-12150.79631622,0.00029,7]
[357274988,1743972640535,-7700.48076663,0.00029,3]
[357274989,1743972640546,-48881.29191227,0.00029,7]
[357274990,1743972640556,-48881.29191227,0.00029,7]
[357274991,1743972640567,-3619.46128945,0.00029,7]
[357274992,1743972640577,-3619.46128945,0.00029,7]
[357274993,1743972640589,-49128.49513356,0.00029,7]
[357274994,1743972640601,-49128.49513356,0.00029,7]
[357274995,1743972640611,-677.08333333,0.00029,7]
[357274996,1743972640621,-677.08333333,0.00029,3]
[357274997,1743972640631,-12500.0,0.00029,3]
[357274999,1743972640642,-160.0,0.00029,7]
[357275000,1743972640653,-326.44132619,0.00029069,2]
[357275001,1743972640663,-2200.0,0.0002912,2]
[357275002,1743972640674,-2200.0,0.00029121,2]
[357275003,1743972640685,-312.59,0.00029195,2]
[357275004,1743972640694,-2200.0,0.00029477,2]
[357275005,1743972640703,-2200.0,0.00029479,2]
[357275006,1743972640714,-223.0315306,0.00029487,2]
[357275007,1743972640725,-2200.0,0.00029493,2]
[357275009,1743972640735,-250.98452923,0.00029847,2]
[357275010,1743972640746,-1000.0,0.00029852,5]
[357275011,1743972640755,-500.0,0.00029852,5]
[357275012,1743972640765,-500.0,0.00029852,5]
[357275013,1743972640775,-1000.0,0.00029852,5]
[357275014,1743972640784,-500.0,0.00029852,5]
[357275015,1743972640794,-500.0,0.00029852,5]
[357275016,1743972640804,-168.0,0.00029857,2]
[357275017,1743972640814,-168.0,0.00029857,2]
[357275018,1743972640824,-168.0,0.00029857,2]
[357275019,1743972640834,-168.0,0.00029857,2]
[357275020,1743972640844,-168.0,0.00029857,2]
[357275021,1743972640853,-168.0,0.00029857,2]
[357275022,1743972640863,-168.0,0.00029857,2]
[357275024,1743972640873,-168.0,0.00029857,2]
[357275025,1743972640883,-168.0,0.00029857,2]
[357275026,1743972640893,-168.0,0.00029857,2]
[357275027,1743972640902,-168.0,0.00029857,2]
[357275028,1743972640912,-168.0,0.00029857,2]
[357275030,1743972640922,-168.0,0.00029857,2]
[357275032,1743972640932,-168.0,0.00029857,2]
[357275033,1743972640942,-168.0,0.00029857,2]
[357275034,1743972640952,-168.0,0.00029857,2]
[357275035,1743972640962,-168.0,0.00029857,2]
[357275036,1743972640973,-168.0,0.00029857,2]
[357275037,1743972640984,-168.0,0.00029857,2]
[357275039,1743972640994,-168.0,0.00029857,2]
[357275040,1743972641004,-168.0,0.00029857,2]
[357275042,1743972641014,-168.0,0.00029857,2]
[357275043,1743972641024,-168.0,0.00029857,2]
[357275044,1743972641034,-168.0,0.00029857,2]
[357275045,1743972641043,-168.0,0.00029857,2]
[357275046,1743972641053,-168.0,0.00029857,2]
[357275047,1743972641063,-168.0,0.00029857,2]
[357275048,1743972641072,-168.0,0.00029857,2]
[357275049,1743972641082,-168.0,0.00029857,2]
[357275050,1743972641092,-168.0,0.00029857,2]
[357275051,1743972641103,-168.0,0.00029857,2]
[357275052,1743972641113,-168.0,0.00029857,2]
[357275053,1743972641123,-168.0,0.00029857,2]
[357275054,1743972641133,-168.0,0.00029857,2]
[357275056,1743972641143,-168.0,0.00029857,2]
[357275058,1743972641152,-168.0,0.00029857,2]
[357275060,1743972641162,-168.0,0.00029857,2]
[357275062,1743972641171,-168.0,0.00029857,2]
[357275063,1743972641181,-168.0,0.00029857,2]
[357275064,1743972641190,-168.0,0.00029857,2]
[357275065,1743972641200,-168.0,0.00029857,2]
[357275066,1743972641210,-168.0,0.00029857,2]
[357275067,1743972641219,-168.0,0.00029857,2]
[357275068,1743972641233,-168.0,0.00029857,2]
[357275069,1743972641242,-168.0,0.00029857,2]
[357275070,1743972641252,-168.0,0.00029857,2]
[357275071,1743972641262,-168.0,0.00029857,2]
[357275072,1743972641272,-168.0,0.00029857,2]
[357275073,1743972641282,-168.0,0.00029857,2]
[357275074,1743972641291,-168.0,0.00029857,2]
[357275075,1743972641301,-168.0,0.00029857,2]
[357275076,1743972641310,-168.0,0.00029857,2]
[357275077,1743972641320,-168.0,0.00029857,2]
[357275078,1743972641330,-168.0,0.00029857,2]
[357275079,1743972641340,-168.0,0.00029857,2]
[357275080,1743972641350,-168.0,0.00029857,2]
[357275081,1743972641360,-168.0,0.00029857,2]
[357275082,1743972641370,-168.0,0.00029857,2]
[357275083,1743972641380,-256.0,0.00029857,2]
[357275084,1743972641390,-500.0,0.00029964,2]
[357275085,1743972641400,-500.0,0.0003,2]
[357275086,1743972641410,-252.0,0.0003,2]
[357275087,1743972641419,-2200.0,0.00030247,7]
[357275088,1743972641429,-500.0,0.00030852,5]
[357275089,1743972641439,-1000.0,0.00030852,5]
[357275090,1743972641449,-500.0,0.00030852,5]
[357275091,1743972641459,-1000.0,0.00030852,5]
[357275092,1743972641468,-500.0,0.00030852,5]
[357275093,1743972641483,-1000.0,0.00030852,5]
[357275094,1743972641493,-1111.34722706,0.00030852,5]
[357275095,1743972641503,-1000.0,0.00030852,5]
[357275096,1743972641513,-1000.0,0.00030852,5]
[357275097,1743972641523,-1000.0,0.00030852,5]
[357275098,1743972641532,-1000.0,0.00030852,5]
[357275099,1743972641542,-1000.71988164,0.00030852,5]
[357275100,1743972641553,-231.28369723,0.00030856,2]
[357275101,1743972641563,-2200.0,0.00030896,7]
[357275102,1743972641574,-823.0,0.00031004,2]
[357275103,1743972641584,-3685.91649308,0.00031396,2]
[357275104,1743972641600,-154.35,0.000315,31]
[357275105,1743972641612,-154.35,0.000315,31]
[357275106,1743972641623,-154.35,0.000315,31]
[357275107,1743972641633,-154.35,0.000315,31]
[357275108,1743972641646,-154.35,0.000315,31]
[357275109,1743972641656,-154.35,0.000315,31]
[357275110,1743972641666,-500.0,0.00031507,7]
[357275111,1743972641677,-2200.0,0.00031722,7]
[357275112,1743972641688,-257.20483,0.00031963,120]
[357275113,1743972641698,-239.84119403,0.00032225,2]
[357275114,1743972641708,-326.44132619,0.0003268,2]
[357275115,1743972641718,-2200.0,0.00032939,7]
[357275116,1743972641736,-151.0,0.00033,120]
[357275117,1743972641747,-2200.0,0.00033182,7]
[357275118,1743972641757,-250.98452923,0.00033578,2]
[357275119,1743972641767,-2200.0,0.00033588,7]
[357275120,1743972641778,-248.71531821,0.00033594,2]
[357275121,1743972641787,-1152.0,0.00033611,2]
[357275122,1743972641797,-3685.91649308,0.00034365,2]
[357275123,1743972641807,-501.28450436,0.00034452,5]
[357275124,1743972641817,-1000.0,0.00034452,5]
[357275125,1743972641827,-1000.0,0.00034452,5]
[357275126,1743972641838,-500.0,0.00034452,5]
[357275127,1743972641848,-1000.0,0.00034452,2]
[357275128,1743972641858,-257.91778498,0.00034963,2]
[357275129,1743972641868,-2000.0,0.00035,15]
[357275130,1743972641878,-2200.0,0.00035475,7]
[357275131,1743972641888,-250.98452923,0.00035606,3]
[357275132,1743972641897,-500.0,0.00035616,7]
[357275133,1743972641907,-619.17826477,0.00035616,7]
[357275134,1743972641916,-500.0,0.00035673,5]
[357275135,1743972641925,-473.2,0.00035724,30]
[357275136,1743972641935,-2438.09702698,0.00035799,2]
[357275137,1743972641945,-1000.0,0.0003589,2]
[357275138,1743972641955,-178.18700459,0.00036,30]
[357275139,1743972641965,-496.155554,0.00036123,2]
[357275140,1743972641978,-326.44132619,0.0003629,2]
[357275141,1743972641988,-154.35,0.000363,31]
[357275142,1743972641998,-154.35,0.000363,31]
[357275143,1743972642008,-154.35,0.000363,31]
[357275144,1743972642018,-154.35,0.000363,31]
[357275145,1743972642027,-154.35,0.000363,31]
[357275146,1743972642037,-154.35,0.000363,31]
[357275147,1743972642047,-500.0,0.00036308,7]
[357275148,1743972642057,-267.46074303,0.00036332,2]
[357275149,1743972642066,-1613.0,0.00036436,2]
[357275150,1743972642076,-257.20483,0.0003653,120]
[357275151,1743972642085,-3685.91649308,0.00037333,2]
[357275152,1743972642095,-201.75659287,0.00037337,10]
[357275153,1743972642104,-2000.0,0.000375,15]
[357275154,1743972642114,-2000.0,0.000375,15]
[357275155,1743972642123,-2000.0,0.000375,15]
[357275156,1743972642133,-2000.0,0.000375,15]
[357275157,1743972642142,-2000.0,0.000375,15]
[357275158,1743972642152,-360.0,0.000375,15]
[357275159,1743972642162,-277.35679052,0.00037701,2]
[357275160,1743972642171,-151.1,0.00037717,2]
[357275161,1743972642181,-1478.0,0.00037717,2]
[357275162,1743972642191,-542.0,0.00037717,2]
[357275163,1743972642200,-401.0,0.00037717,2]
[357275164,1743972642210,-2254.0,0.00037717,2]
[357275165,1743972642219,-150.0,0.00037717,2]
[357275166,1743972642232,-500.0,0.0003792,7]
[357275167,1743972642241,-250.98452923,0.00037925,3]
[357275168,1743972642251,-170.91,0.00037948,50]
[357275169,1743972642260,-842.37,0.00037948,50]
[357275170,1743972642269,-151.0,0.00038,14]
[357275171,1743972642279,-151.0,0.00038,14]
[357275172,1743972642290,-420.47256183,0.00038002,6]
[357275173,1743972642300,-2200.0,0.00038177,7]
[357275174,1743972642309,-287.61899177,0.0003907,2]
[357275175,1743972642319,-2200.0,0.00039236,14]
[357275176,1743972642328,-1042.0,0.00039499,5]
[357275177,1743972642337,-1500.0,0.00039871,5]
[357275178,1743972642347,-1500.0,0.00039871,5]
[357275179,1743972642357,-326.44132619,0.000399,2]
[357275180,1743972642366,-509.18141806,0.00039973,5]
[357275181,1743972642376,-500.0,0.00039973,5]
[357275182,1743972642385,-500.0,0.00039973,5]
[357275183,1743972642395,-500.0,0.00039973,5]
[357275184,1743972642404,-501.96905846,0.0003999,3]
[357275185,1743972642414,-151.0,0.0004,14]
[357275186,1743972642423,-151.0,0.0004,14]
[357275187,1743972642433,-169314.1806037,0.0004,120]
[357275188,1743972642443,-646824.64572663,0.0004,60]
[357275189,1743972642453,-151.0,0.0004,14]
[357275190,1743972642463,-151.0,0.0004,14]
[357275191,1743972642473,-151.493971,0.0004,14]
[357275192,1743972642483,-151.0,0.0004,14]
[357275193,1743972642493,-151.0,0.0004,14]
[357275194,1743972642502,-187.895352,0.0004,14]
[357275195,1743972642513,-187.895352,0.0004,14]
[357275196,1743972642522,-151.0,0.0004,14]
[357275197,1743972642532,-151.0,0.0004,14]
[357275198,1743972642541,-151.0,0.0004,14]
[357275199,1743972642551,-151.0,0.0004,14]
[357275200,1743972642561,-151.0,0.0004,14]
[357275201,1743972642570,-151.0,0.0004,14]
[357275202,1743972642580,-151.0,0.0004,14]
[357275203,1743972642591,-3685.91649308,0.00040302,28]
[357275204,1743972642602,-298.26089446,0.00040439,2]
[357275205,1743972642612,-2200.0,0.00040713,30]
[357275206,1743972642621,-150.0,0.00040717,2]
[357275207,1743972642632,-1478.0,0.00040717,2]
[357275208,1743972642642,-542.0,0.00040717,2]
[357275209,1743972642651,-401.0,0.00040717,2]
[357275210,1743972642662,-2254.0,0.00040717,2]
[357275211,1743972642673,-150.0,0.00040717,2]
[357275212,1743972642877,-1500.0,0.00040871,5]
[357275213,1743972642894,-1500.0,0.00040871,5]
[357275214,1743972642905,-1500.0,0.00040871,5]
[357275216,1743972642915,-1365.86838408,0.00040871,5]
[357275218,1743972642926,-161.94632453,0.00041096,2]
[357275220,1743972642936,-257.20483,0.00041096,120]
[357275222,1743972642946,-500.0,0.00041152,10]
[357275224,1743972642956,-154.35,0.000412,31]
[357275225,1743972642966,-154.35,0.000412,31]
[357275226,1743972642977,-154.35,0.000412,31]
[357275227,1743972642987,-154.35,0.000412,31]
[357275228,1743972642998,-154.35,0.000412,31]
[357275229,1743972643008,-154.35,0.000412,31]
[357275231,1743972643019,-160.0,0.000412,10]
[357275232,1743972643030,-1000.0,0.00041211,120]
[357275233,1743972643041,-157.079544,0.00041605,2]
[357275234,1743972643051,-309.29654756,0.00041808,2]
[357275235,1743972643062,-200.0,0.00042,120]
[357275236,1743972643072,-677.08333333,0.00042,30]
[357275238,1743972643083,-160.0,0.00042,30]
[357275241,1743972643093,-151.0,0.00042299,2]
[357275244,1743972643103,-151.0,0.00042299,2]
[357275247,1743972643113,-419.28457398,0.00042652,2]
[357275250,1743972643123,-160.0,0.00042652,2]
[357275253,1743972643133,-730.93826255,0.00042652,2]
[357275256,1743972643143,-151.0,0.00042732,120]
[357275260,1743972643152,-154.283921,0.00042732,120]
[357275263,1743972643163,-500.0,0.00042973,10]
[357275266,1743972643173,-302.33418085,0.00042973,10]
[357275269,1743972643182,-300.0,0.00042973,10]
[357275272,1743972643192,-1000.0,0.00042998,120]
[357275275,1743972643202,-22932.88640885,0.00043,3]
[357275278,1743972643213,-82392.82255427,0.00043,3]
[357275280,1743972643224,-93510.7437797,0.00043,7]
[357275282,1743972643235,-195525.16764908,0.00043,7]
[357275284,1743972643245,-7238.92257891,0.00043,7]
[357275286,1743972643255,-7238.92257891,0.00043,7]
[357275289,1743972643265,-349.8,0.00043,30]
[357275291,1743972643275,-160.0,0.00043,7]
[357275294,1743972643285,-494.40644258,0.00043,7]
[357275298,1743972643295,-494.40644258,0.00043,7]
[357275301,1743972643305,-1028.84,0.00043,2]
[357275303,1743972643315,-5000.0,0.00043,90]
[357275306,1743972643325,-97762.58382454,0.00043,7]
[357275307,1743972643336,-97762.58382454,0.00043,7]
[357275308,1743972643346,-7238.92257891,0.00043,7]
[357275309,1743972643357,-7238.92257891,0.00043,7]
[357275310,1743972643367,-97762.58382455,0.00043,7]
[357275311,1743972643376,-97762.58382455,0.00043,7]
[357275313,1743972643387,-267.92396624,0.00043,30]
[357275315,1743972643397,-172.48471303,0.00043,120]
[357275317,1743972643407,-151.0,0.00043,120]
[357275319,1743972643417,-151.0,0.00043,120]
[357275321,1743972643427,-151.524379,0.00043,120]
[357275323,1743972643438,-151.0,0.00043,120]
[357275325,1743972643448,-151.0,0.00043,120]
[357275327,1743972643457,-151.0,0.00043,120]
[357275329,1743972643468,-151.0,0.00043,120]
[357275331,1743972643482,-151.0,0.00043,120]
[357275333,1743972643492,-151.0,0.00043,120]
[357275335,1743972643503,-151.0,0.00043,120]
[357275337,1743972643513,-151.0,0.00043,120]
[357275339,1743972643523,-151.0,0.00043,120]
[357275341,1743972643533,-151.0,0.00043,120]
[357275343,1743972643543,-151.0,0.00043,120]
[357275344,1743972643554,-151.0,0.00043,120]
[357275345,1743972643564,-151.0,0.00043,120]
[357275346,1743972643575,-151.0,0.00043,120]
[357275347,1743972643585,-151.0,0.00043,120]
[357275348,1743972643597,-151.0,0.00043,120]
[357275349,1743972643611,-151.0,0.00043,120]
[357275350,1743972643622,-151.0,0.00043,120]
[357275351,1743972643632,-151.0,0.00043,120]
[357275352,1743972643642,-151.0,0.00043,120]
[357275353,1743972643652,-151.0,0.00043,120]
[357275354,1743972643662,-12150.79631622,0.00043,7]
[357275355,1743972643671,-12150.79631622,0.00043,7]
[357275356,1743972643683,-151.0,0.00043,120]
[357275357,1743972643693,-151.0,0.00043,120]
[357275358,1743972643703,-151.0,0.00043,120]
[357275359,1743972643713,-168.533343,0.00043,120]
[357275360,1743972643723,-151.0,0.00043,120]
[357275361,1743972643735,-151.0,0.00043,120]
[357275362,1743972643745,-151.0,0.00043,120]
[357275363,1743972643755,-151.0,0.00043,120]
[357275364,1743972643765,-151.0,0.00043,120]
[357275365,1743972643776,-151.0,0.00043,120]
[357275366,1743972643785,-151.275305,0.00043,120]
[357275367,1743972643795,-161.0,0.00043,90]
[357275368,1743972643805,-151.0,0.00043,120]
[357275369,1743972643815,-151.0,0.00043,120]
[357275370,1743972643825,-48881.29191227,0.00043,7]
[357275371,1743972643835,-48881.29191227,0.00043,7]
[357275372,1743972643844,-151.0,0.00043,120]
[357275373,1743972643854,-151.0,0.00043,120]